Cogmind - Beta 10.2 *** ADVENTURER MODE // 2020.11.13 @ 09:39:44 Player: darlorth Result: Self-destructed Performance ------------- Evolutions (2) 1000 Regions Visited (4) 800 Robots Destroyed (82) 410 Value Destroyed (2349) 2349 Prototype IDs (1) 20 Alien Tech Used (0) 0 Bonus (180) 180 TOTAL SCORE: 4759 Bonus ------- High Alert Combat Kills 120 Follower Combat Kills 60 Cogmind --------- Core Integrity 153/550 Matter 300/300 Energy 100/100 System Corruption 0% Temperature Cool (0) Movement Core (600) Ox11 Location -8/Materials Parts ------- > --- POWER (1) -------- (None) > --- PROPULSION (4) --- (None) > --- UTILITY (3) ------ Large Storage Unit Large Storage Unit Signal Interpreter > --- WEAPON (3) ------- Scythe > --- INVENTORY (16) --- Improved Heat Sink Improved Heat Sink Cooling System Cooling System Large Storage Unit Compact Matter Pod (150) Compact Matter Pod (150) Light Armor Plating Light Armor Plating Light Armor Plating Light Armor Plating Electrolaser Heavy Assault Rifle Rocket Launcher Mini Grenade Launcher Peak State ------------ > --- POWER ------------ Light Nuclear Core > --- PROPULSION ------- Advanced Treads Advanced Treads Advanced Treads > --- UTILITY ---------- Large Storage Unit Large Storage Unit Signal Interpreter > --- WEAPON ----------- Electrolaser Maul Scythe > --- INVENTORY -------- Nuclear Core Improved Heat Sink Improved Heat Sink Cooling System Cooling System Large Storage Unit Compact Matter Pod Compact Matter Pod Light Armor Plating Light Armor Plating Light Armor Plating Light Armor Plating Heavy Assault Rifle Rocket Launcher Mini Grenade Launcher Scythe [Rating: 26] Favorites ----------- Power Ion Engine Engine Ion Engine Power Core Light Nuclear Core Propulsion Aluminum Leg Treads Advanced Treads Leg Aluminum Leg Hover Unit Hover Unit Flight Unit Improved Flight Unit Utility Large Storage Unit Device Heat Sink Storage Large Storage Unit Processor Signal Interpreter Protection Light Armor Plating Weapon Assault Rifle Energy Gun Beam Rifle Ballistic Gun Assault Rifle Launcher Mini Grenade Launcher Impact Weapon Maul Slashing Weapon Scythe Build | -11 -10 -10 -9 -8 ------- Run | Scr Mat Min Mat Mat Slots Evolved 4 | . . . 2 2 Power . | . . . . . Propulsion 2 | . . . . 2 Utility 1 | . . . 1 . Weapon 1 | . . . 1 . Parts Attached 48 | 5 2 4 27 10 Power 6 | 1 . . 3 2 Engine 4 | 1 . . 3 . Core 2 | . . . . 2 Reactor . | . . . . . Propulsion 12 | 2 . 2 7 1 Treads 3 | . . . 2 1 Leg 7 | 2 . 2 3 . Wheel . | . . . . . Hover 1 | . . . 1 . Flight 1 | . . . 1 . Utility 9 | . 2 1 6 . Device 2 | . 1 1 . . Storage 4 | . . . 4 . Processor 2 | . . . 2 . Hackware . | . . . . . Protection 1 | . 1 . . . Artifact . | . . . . . Weapon 21 | 2 . 1 11 7 Energy Gun 5 | . . 1 3 1 Energy Cannon . | . . . . . Ballistic Gun 9 | 2 . . 7 . Ballistic Cannon . | . . . . . Launcher 2 | . . . . 2 Special Weapon . | . . . . . Impact Weapon 3 | . . . 1 2 Slashing Weapon 2 | . . . . 2 Piercing Weapon . | . . . . . Special Melee Weapon . | . . . . . Unidentified Prototypes 1 | . . . 1 . Parts Lost 13 | . . 1 4 8 Power 2 | . . . . 2 Propulsion 4 | . . . 1 3 Utility 2 | . . 1 1 . Weapon 5 | . . . 2 3 Highest Loss Streak 5 | . . 1 3 5 Average Slot Usage (%) 89 | . 78 92 91 86 Engine 9 | . 14 14 10 3 Core 1 | . . . . 5 Treads 9 | . . . 8 24 Leg 14 | . 28 28 12 . Device 9 | . 3 20 8 . Storage 7 | . . . 6 18 Processor 8 | . . . 14 9 Energy Gun 5 | . . 6 6 3 Ballistic Gun 14 | . 28 21 14 3 Impact Weapon 5 | . . . 8 7 Slashing Weapon 2 | . . . . 11 Naked Turns . | . . . . . Heaviest Build 48 | 9 13 12 48 48 Greatest Support 66 | 20 20 20 44 66 Greatest Overweight (x) 15 | . . . 1 15 Average Overweight (x) . | . . . . . Largest Inventory Capacity 16 | 4 4 4 16 16 Average Capacity 8 | 4 4 4 7 16 Most Carried 16 | 3 3 4 10 16 Average Carried 7 | . 1 3 6 14 Final Capacity 16 | 4 4 4 16 16 Final Carried 15 | 1 1 4 10 15 Class Distribution -------------------- 47% | Scavenger-Mutant 47% | Mutant 4% | Scavenger-Gunner Dominant Class ---------------- Mutant | -10/Materials Mutant | -10/Mines Scavenger-Mutant | -9/Materials Mutant | -8/Materials Resources | -11 -10 -10 -9 -8 ----------- Run | Scr Mat Min Mat Mat Matter Collected 1380 | 240 90 221 540 289 Remotely . | . . . . . Salvage Created 2733 | . 204 190 887 1452 Parts 164 | . 10 5 72 77 Haulers Intercepted 4 | . . . 2 2 Recyclers Shooed 2 | . 1 . 1 . Parts Field Recycled . | . . . . . Retrieved Matter . | . . . . . Parts Self-Destructed . | . . . . . Prevented . | . . . . . Kills | -11 -10 -10 -9 -8 ------- Run | Scr Mat Min Mat Mat Combat Hostiles Destroyed 58 | . 5 4 20 29 Melee 14 | . . . . 14 Guns 34 | . 5 4 20 5 AOE 9 | . . . . 9 Classes Destroyed 13 | . 3 . 7 3 Worker 4 | . . . . 4 Builder 5 | . . . 1 4 Hauler 4 | . . . 2 2 Recycler 2 | . 1 . . 1 Mechanic 1 | . . . . 1 Operator 3 | . . . 2 1 Watcher 5 | . . . 3 2 Swarmer 13 | . 3 . 7 3 Grunt 35 | . 2 4 6 23 Brawler 1 | . . . 1 . Duelist 1 | . . . 1 . Sentry 7 | . . . 5 2 Hunter 1 | . . . . 1 Best Kill Streak 25 | . 3 2 4 25 Combat Bots Only 9 | . 3 2 4 9 Max Kills in Single Turn 7 | . 2 1 1 7 Gunslinging 1 | . 1 . . . Exploded 2 | . . . . 2 Melee 1 | . . . . 1 Uniques/NPCs Destroyed . | . . . . . Combat | -11 -10 -10 -9 -8 -------- Run | Scr Mat Min Mat Mat Damage Taken 2847 | . 216 430 810 1391 Core 660 | . 35 85 143 397 Absorbed by Shields . | . . . . . Core Remaining (%) 72 | 100 . 52 64 . Volleys Fired 157 | . 19 22 85 31 Largest 3 | . 2 2 3 2 Hottest 105 | . 40 40 105 86 Shots Fired 273 | . 38 44 142 49 Gun 260 | . 38 44 142 36 Cannon . | . . . . . Launcher 13 | . . . . 13 Special . | . . . . . Kinetic 208 | . 38 44 108 18 Thermal 52 | . . . 34 18 Explosive 13 | . . . . 13 Electromagnetic . | . . . . . Robot Hit Streak 23 | . 12 9 20 23 Robot Miss Streak 2 | . 2 2 2 1 Penetration Max . | . . . . . Secondary Targets 4 | . 2 . 1 1 Max Gunslinging Chain 1 | . 1 . 1 1 Shots Hit Robots 272 | . 31 35 118 88 Core Hits 139 | . 11 12 46 70 Critical Hits 3 | . 1 . 1 1 Critical Kills 1 | . 1 . . . Critical Parts Destroyed 1 | . . . . 1 Melee Attacks 65 | . . . . 65 Impact 11 | . . . . 11 Slashing 54 | . . . . 54 Piercing . | . . . . . Sneak Attacks 7 | . . . . 7 Combat Hostiles 1 | . . . . 1 Follow-up Attacks 8 | . . . . 8 Damage Inflicted 6883 | . 410 385 1539 4549 Guns 2794 | . 410 385 1539 460 Cannons . | . . . . . Explosions 1986 | . . . . 1986 Melee 2103 | . . . . 2103 Ramming . | . . . . . Kinetic 2091 | . 410 385 1101 195 Thermal 703 | . . . 438 265 Explosive 1986 | . . . . 1986 Electromagnetic . | . . . . . Impact 234 | . . . . 234 Slashing 1869 | . . . . 1869 Piercing . | . . . . . Highest Corruption . | . . . . . Average Corruption . | . . . . . Corruption Purged . | . . . . . Overload Shots . | . . . . . Overflow Damage 204 | . . . . 204 Projectiles . | . . . . . Explosions 83 | . . . . 83 Melee 121 | . . . . 121 Knockbacks 4 | . . . . 4 Impact 3 | . . . . 3 Kinetic . | . . . . . Secondary 1 | . . . . 1 Self-Inflicted Damage . | . . . . . Shots . | . . . . . Rammed . | . . . . . Targets Rammed . | . . . . . Kicked . | . . . . . Crushed . | . . . . . Highest Temperature 75 | . . 2 75 54 Average Temperature 20 | . . 1 19 22 Received Heat Transfer 1554 | . 138 315 228 873 Siege Activations . | . . . . . Robots Corrupted . | . . . . . Combat Hostiles . | . . . . . Parts Fried 4 | . . . . 4 Impact Corruptions 1 | . . . . 1 Robots Melted . | . . . . . Combat Hostiles . | . . . . . Parts Melted 5 | . . . 4 1 Heat Transferred 1776 | . . . 1110 666 Parts Sabotaged . | . . . . . Parts Stolen . | . . . . . Parts Stripped . | . . . . . Power Chain Reactions . | . . . . . Missiles Intercepted . | . . . . . Alert | -11 -10 -10 -9 -8 ------- Run | Scr Mat Min Mat Mat Peak Influence 753 | . 170 155 300 753 Initial 56 | . . 56 . 36 Average 146 | . 55 79 132 288 Maximum Alert Level 3 | . . . 1 3 Low Security (%) 80 | 100 100 100 83 45 Level 1 14 | . . . 16 32 Level 2 2 | . . . . 12 Level 3 2 | . . . . 9 Level 4 . | . . . . . Level 5 . | . . . . . High Security . | . . . . . Max Security . | . . . . . Squads Dispatched 11 | . 1 . 2 8 Investigation 5 | . 1 . . 4 Extermination . | . . . . . Reinforcement 6 | . . . 2 4 Assault . | . . . . . Garrison . | . . . . . Intercept . | . . . . . Construction Impeded 1 | . . . . 1 Haulers Reinforced . | . . . . . Stealth | -11 -10 -10 -9 -8 --------- Run | Scr Mat Min Mat Mat Distress Signals 6 | . . . 5 1 Communications Jammed . | . . . . . Distress Signals . | . . . . . Times Spotted 90 | . 8 6 39 37 Peak Tracking Total 8 | . 4 2 5 8 Tactical Retreats 4 | . . . 3 1 Traps | -11 -10 -10 -9 -8 ------- Run | Scr Mat Min Mat Mat Traps Triggered 2 | . 1 . 1 . Indirectly . | . . . . . Trap Hack Attempts . | . . . . . Triggered . | . . . . . Disarmed . | . . . . . Reprogrammed . | . . . . . Reused . | . . . . . Traps Extracted . | . . . . . Installed . | . . . . . Triggered . | . . . . . Machines | -11 -10 -10 -9 -8 ---------- Run | Scr Mat Min Mat Mat Machines Disabled 3 | . . 1 . 2 Max in Single Turn 2 | . . 1 . 2 Machines Sabotaged . | . . . . . Garrisons Compromised . | . . . . . Overloaded Fab Kills . | . . . . . Fab Network Shutdowns . | . . . . . Hacking | -11 -10 -10 -9 -8 --------- Run | Scr Mat Min Mat Mat Machines Accessed 5 | . . . 1 4 Terminals 4 | . . . . 4 Fabricators . | . . . . . Repair Stations . | . . . . . Recycling Units 1 | . . . 1 . Scanalyzers . | . . . . . Garrison Access . | . . . . . Total Hacks 12 | . . . 1 11 Successful 6 | . . . 1 5 Failed 6 | . . . . 6 Catastrophic 2 | . . . . 2 Database Lockouts . | . . . . . Manual 7 | . . . . 7 Terminals 11 | . . . . 11 Fabricators . | . . . . . Repair Stations . | . . . . . Recycling Units 1 | . . . 1 . Scanalyzers . | . . . . . Garrison Access . | . . . . . Terminal Hacks 5 | . . . . 5 Part Schematic 1 | . . . . 1 Terminal Index 1 | . . . . 1 Recall Investigation 1 | . . . . 1 Hauler Manifests 1 | . . . . 1 Zone Layout 1 | . . . . 1 Fabricator Hacks . | . . . . . Repair Station Hacks . | . . . . . Recycling Unit Hacks 1 | . . . 1 . Retrieve Components 1 | . . . 1 . Scanalyzer . | . . . . . Garrison Access Hacks . | . . . . . Unauthorized Hacks . | . . . . . Terminals . | . . . . . Fabricators . | . . . . . Repair Stations . | . . . . . Recycling Units . | . . . . . Scanalyzers . | . . . . . Garrison Access . | . . . . . Data Cores Recovered . | . . . . . Used . | . . . . . Hacking Detections 4 | . . . . 4 Full Trace Events 4 | . . . . 4 Feedback Events . | . . . . . Feedback Blocked . | . . . . . Robot Schematics Acquired . | . . . . . Robots Built . | . . . . . Matter . | . . . . . Time . | . . . . . Total Robot Build Rating . | . . . . . Part Schematics Acquired 1 | . . . . 1 Parts Built . | . . . . . Matter . | . . . . . Time . | . . . . . Total Part Build Rating . | . . . . . Parts Repaired . | . . . . . Time . | . . . . . Parts Recycled . | . . . . . Recycled Matter . | . . . . . Retrieved Matter . | . . . . . Retrieved Components 9 | . . . 9 . Parts Scanalyzed . | . . . . . Part Schematics Acquired . | . . . . . Parts Damaged . | . . . . . Bothacking | -11 -10 -10 -9 -8 ------------ Run | Scr Mat Min Mat Mat Used RIF Installer . | . . . . . Robots Hacked . | . . . . . Non-combat . | . . . . . Combat . | . . . . . Robot Hacks Applied . | . . . . . Relay Couplers Released . | . . . . . Robots Rewired . | . . . . . Allies Hacked . | . . . . . Hacks Repelled . | . . . . . Allies | -11 -10 -10 -9 -8 -------- Run | Scr Mat Min Mat Mat Total Allies 1 | . . 1 . . Largest Group 1 | . . 1 . . Highest-Rated Group 31 | . . 31 . . Highest-Rated Ally 31 | . . 31 . . Total Orders . | . . . . . Ally Attacks 5 | . . 5 . . Total Damage 103 | . . 103 . . Kills 2 | . . 2 . . Allies Corrupted . | . . . . . Allies Melted . | . . . . . Intel | -11 -10 -10 -9 -8 ------- Run | Scr Mat Min Mat Mat Robot Analysis Total . | . . . . . Derelict Logs Recovered 1 | . . 1 . . Drone Launches . | . . . . . Drone Recoveries . | . . . . . Exploration | -11 -10 -10 -9 -8 ------------- Run | Scr Mat Min Mat Mat Turns Passed 3258 | 57 221 880 1346 754 Spaces Moved 1893 | 43 131 654 777 288 Core 12 | 7 . . . 5 Treads 565 | . . . 282 283 Legs 1316 | 36 131 654 495 . Wheels . | . . . . . Hover . | . . . . . Flight . | . . . . . Fastest Speed 50 | 50 120 120 120 145 Average Speed 128 | 108 120 120 129 155 Slowest Speed 800 | 120 120 120 165 800 Overloaded Moves . | . . . . . Propulsion Burnouts . | . . . . . Robots Hopped . | . . . . . Cave-ins Triggered . | . . . . . Exploration Rate (%) 42 | 3 27 99 54 27 Regions Visited 4 Branch Regions 1 Pre-discovered Areas . | . . . . . Known Exits Taken 1 | . . . 1 . Unknown Exits Taken 3 | 1 1 1 . . Scrap Searched 1 | . . 1 . . Spaces Dug . | . . . . . Terrain Destroyed 69 | . . . . 69 Melee . | . . . . . Projectile . | . . . . . AOE 69 | . . . . 69 Terrain Rammed . | . . . . . Walls Destroyed . | . . . . . Machines Disabled . | . . . . . Actions | -11 -10 -10 -9 -8 --------- Run | Scr Mat Min Mat Mat Total 2367 | 53 157 707 988 462 Wait 155 | . 4 15 61 75 Move 1889 | 42 130 653 776 288 Hop . | . . . . . Pick Up 43 | 6 2 7 19 9 Fast Attach 6 | . . 2 4 . Attach 18 | 5 2 1 7 3 Detach . | . . . . . Swap 24 | . . 1 16 7 Drop 27 | . . 6 20 1 Fire 157 | . 19 22 85 31 Melee 48 | . . . . 48 Ram . | . . . . . Kick . | . . . . . Crush . | . . . . . Escape Stasis . | . . . . . Rewire . | . . . . . Trap . | . . . . . Miscellaneous . | . . . . . Route ------- -11/Scrapyard -10/Materials -10/Mines (discovered 2 exits: *Mat x2) -9/Materials (discovered 3 exits: *Mat / *Min x2) -8/Materials (discovered 1 exit: [*Sto]) History --------- Turn | Location | Event 3 | -11/Scrapyard | Discovered new exit (range 16) 58 | -11/Scrapyard | Entered Materials 261 | -10/Materials | Discovered new exit (range 8) 279 | -10/Materials | Entered Mines 309 | -10/Mines | Build established: Mutant 588 | -10/Mines | Discovered new exit (range 5) 612 | -10/Mines | Received a Mining Laser from a helpful Derelict 832 | -10/Mines | Discovered new exit (range 12) 1037 | -10/Mines | Build established: Scavenger-Mutant 1159 | -10/Mines | Entered Materials 1159 | -9/Materials | Evolved 2 slots: Utility x1, Weapon x1 1354 | -9/Materials | Lost 3 parts (1n2w) 1696 | -9/Materials | Discovered new exit (range 6) 1824 | -9/Materials | Identified exit to Mines 1929 | -9/Materials | Discovered exit to Mines (range 14) 2477 | -9/Materials | Discovered new exit (range 4) 2480 | -9/Materials | Identified exit to Materials 2505 | -9/Materials | Entered another Materials area 2505 | -8/Materials | Evolved 2 slots: Propulsion x2 3021 | -8/Materials | Build established: Mutant 3158 | -8/Materials | Destroyed 9 combat bots 3169 | -8/Materials | Discovered new exit (range 10) 3225 | -8/Materials | Core integrity fell below 50% 3259 | -8/Materials | Self-destructed Last Messages --------------- 03211_ K-01 Serf collects debris. 03212_ U-05 Engineer lays Concrete. 03213_ Adv. Treads destroyed. 03215_ K-01 Serf collects debris. 03217_ U-05 Engineer lays Concrete. 03222_ K-01 Serf cleans the Pressure Siphon. 03223_ U-05 Engineer lays Concrete. 03225_ G-47 Trooper knocked back. 03225_ K-01 Serf cleans the Pressure Siphon. 03228_ G-47 Trooper destroyed. 03228_ K-01 Serf collects debris. 03230_ Scythe destroyed. 03233_ K-01 Serf collects debris. 03236_ Nuclear Core destroyed. 03237_ K-01 Serf collects debris. 03240_ Maul destroyed. 03242_ K-01 Serf collects debris. 03243_ U-05 Engineer lays Concrete. 03251_ Destroyed Particle Gun. 03252_ U-05 Engineer builds a Wall. Map ----- +----------------------------------------------------+ | ?????????????????????????????????????????????????? | | ?????????????????????????????????????????????????? | | ?????????????????????????????????????????????????? | | ?????????????????????????????????????????????????? | | ?????????????????????????????????????????????????? | | ?????????????????????????????????????????????????? | | ?????????????????????????????????????????????????? | | ?????????????????????????????????????????????????? | | ?????????????????????????????????????????????????? | | ????????????????????????????????? ???????????????? | | ?? #######???# """ # """ """ ## ???????????????? | | ?? #???# """ # ## #????????? ????? | | ??###### #???# # ## ######????""???? | | ??###### #???# ############# # #### ""???? | | ??# # #???#+##+####### [ # # ""???? | | ??# # ##### # "S + % + """??? | | ??# + ! # """ # % = """"?? | | ??# ####### T # "" # % """"?? | | ??# #?????# + # # """??? | | ??############ ! # [ # ! # ????? | | ???# # """" ######## ! # #?????? | | ???# """ """ # """" ==#??????? | | ???# """ """ # """" * ######## | | ???# """ """ + k! !!=%| | | ???# # = g = != ####### " | | ???# ###"T"##%! g@u = [ []#?????# " | | ???# #?#"""##=[*########## # # =#?????#!* | | ???# #?###### [%## # # #?????#!! | | ???################## ### ### ## #?????### | | ?????????# # ### #######+######### | | ?????????# """ """ # # """" # | | ?????????# """ """ " < # """ ""S"" # | | ?????????# """ """ # # """ "" ""?# | | ?????????# # ####### + """ # | | ?????????# ## ######## # # | | ?????????# ## # # # !# | | ?????????# ## # """ # ############### | | ?????????######+##### + """ # ????????????? | | ??????????????# #???# # """ # ????????????? | | ??????????????# #???# # # ????????????? | | ??????????????# #???# # """ # #???????????????# | | ????????????????????# ?????????????????????????? | | ????????????????????? ?????????????????????????? | | ?????????????????????????????????????????????????? | | ?????????????????????????????????????????????????? | | ?????????????????????????????????????????????????? | | ?????????????????????????????????????????????????? | | ?????????????????????????????????????????????????? | | ?????????????????????????????????????????????????? | | ?????????????????????????????????????????????????? | +----------------------------------------------------+ Best States ------------- Heat Dissipation 52 Energy Generation 14 Energy Capacity 265 Matter Stores 300 Matter Capacity 300 Sight Range 16 Terrain Scan Density 10 Armor Coverage 150 Resistance: KI 20 Resistance: TH 20 Resistance: EX 20 Resistance: EM 20 Resistance: I 20 Resistance: S 20 Resistance: P 20 Evasion (%) 40 Melee Accuracy 5 Recoil Reduction 3 Offensive Hacking 10 Item Schematics ----------------- Katana | -8/Materials | Hacked Robot Schematics ------------------ None Fabricated ------------ Nothing Alien Tech Used ----------------- None Achievements -------------- None Challenges ------------ None Game ------ Seed MetafieldCoreDerivative Manual? 0 Play Time 00:33:12 Cumulative 137.3 hours Start 2020.11.13 @ 09:07:26 End 2020.11.13 @ 09:39:44 Sessions 1 Manual Loads 0 Difficulty Adventurer Special Mode None Game No. 168 Rogue 102 Adventurer 23 Explorer 43 Win Type - Total 3 Types 2/0/1/0/0/0/0/0/0 Lore% 29 Gallery% 61 Achievement% 48 Wizard Run 0 Options --------- ASCII 0 Keyboard 0 Movement Mouse Keybinds 0 Fullscreen 1 Font 12/Smallcaps Map View 83x54 Tactical HUD 1 Map Filters NONE Filters NONE Steam 1 RUN: 56ab7301-24d6-4957-9c93-bc516a503b3b